[Event "Gibraltar Masters 18th"]
[Site "Gibraltar"]
[Date "2020.01.23"]
[Round "3.25"]
[White "Petrov, Martin"]
[Black "Adhiban, Baskaran"]
[Result "0-1"]
[ECO "C07"]
[WhiteElo "2504"]
[BlackElo "2654"]
[PlyCount "132"]
[EventDate "2020.01.21"]
[EventType "swiss"]
[EventRounds "10"]
[EventCountry "GGB"]
[SourceTitle "BritBase"]
[Source "John Saunders"]
[SourceDate "2021.06.05"]
[SourceVersion "1"]
[SourceVersionDate "2021.06.05"]
[SourceQuality "1"]
[TimeControl "40/100:0"]
[WhiteClock "0:49:02"]
[BlackClock "0:45:16"]

1. e4 {[%emt 0:00:00]} e6 {[%emt 0:00:00]} 2. d4 {[%emt 0:00:00]} d5 {[%emt 0:
00:00]} 3. Nd2 {[%emt 0:00:00]} c5 {[%emt 0:00:00]} 4. exd5 {[%emt 0:00:00]}
Qxd5 {[%emt 0:00:00]} 5. Ngf3 {[%emt 0:00:00]} cxd4 {[%emt 0:00:00]} 6. Bc4 {
[%emt 0:00:00]} Qd8 {[%emt 0:00:00]} 7. O-O {[%emt 0:00:00]} a6 {[%emt 0:00:00]
} 8. Nb3 {[%emt 0:00:00]} Nc6 {[%emt 0:00:00]} 9. Nbxd4 {[%emt 0:00:00]} Nxd4 {
[%emt 0:00:00]} 10. Nxd4 {[%emt 0:00:00]} Qc7 {[%emt 0:00:00]} 11. Bb3 {
[%emt 0:00:00]} Bd6 {[%emt 0:00:00]} 12. Re1 {[%emt 0:00:00]} Ne7 {[%emt 0:00:
00]} 13. Qh5 {[%emt 0:00:00]} O-O {[%emt 0:00:00]} 14. c3 {[%emt 0:00:00]} Ng6
{[%emt 0:00:00]} 15. Bc2 {[%emt 0:00:00]} b5 {[%emt 0:00:00]} 16. Nf3 {[%emt 0:
00:00]} b4 {[%emt 0:00:00]} 17. Bd2 {[%emt 0:08:01]} bxc3 18. Bxc3 Qc5 19. Qxc5
Bxc5 20. Rad1 Bb7 21. Be4 Bxe4 22. Rxe4 Ne7 23. Rc4 Rfc8 24. Kf1 Nd5 25. Bd2
Bd6 26. Rdc1 Rxc4 27. Rxc4 Kf8 28. Ke2 Ke7 29. b3 f6 30. h4 h5 31. g3 e5 32.
Ne1 Kd7 33. Nd3 Rc8 34. Ra4 Rc6 35. Kd1 Ke6 36. Nb4 Bxb4 37. Bxb4 g5 38. hxg5
fxg5 39. Bd2 Kf5 40. Ke2 Nf6 41. Be1 g4 42. Bd2 Ne4 43. Ke3 Ng5 44. Ke2 Nf3 45.
Be3 Rc2+ 46. Kd1 Rc6 47. Ke2 h4 48. gxh4 Nxh4 49. Kd3 Ng2 50. Bd2 Nf4+ 51. Bxf4
exf4 52. Ra5+ Kg6 53. Ke2 f3+ 54. Ke3 Rf6 55. Ra4 Kg5 56. Ra5+ Kh6 57. Rc5 g3
58. Rc1 g2 59. b4 Kh5 60. a4 Rg6 61. Rg1 Kg4 62. Rc1 Re6+ 63. Kd4 Kh3 64. b5
axb5 65. axb5 Kh2 66. Kd5 {[%emt 0:00:00]} Re8 {[%emt 0:00:00]} 0-1

[Event "Gibraltar Masters 18th"]
[Site "Gibraltar"]
[Date "2020.01.23"]
[Round "3.26"]
[White "Sasikiran, Krishnan"]
[Black "Pogonina, Natalija"]
[Result "1/2-1/2"]
[ECO "C92"]
[WhiteElo "2648"]
[BlackElo "2479"]
[PlyCount "102"]
[EventDate "2020.01.21"]
[EventType "swiss"]
[EventRounds "10"]
[EventCountry "GGB"]
[SourceTitle "BritBase"]
[Source "John Saunders"]
[SourceDate "2021.06.05"]
[SourceVersion "1"]
[SourceVersionDate "2021.06.05"]
[SourceQuality "1"]
[TimeControl "40/100:0"]
[WhiteClock "0:18:37"]
[BlackClock "0:17:17"]

1. e4 {[%emt 0:00:00]} e5 {[%emt 0:00:00]} 2. Nf3 {[%emt 0:00:00]} Nc6 {
[%emt 0:00:00]} 3. Bb5 {[%emt 0:00:00]} a6 {[%emt 0:00:00]} 4. Ba4 {[%emt 0:00:
00]} Nf6 {[%emt 0:00:00]} 5. O-O {[%emt 0:00:00]} Be7 {[%emt 0:00:00]} 6. Re1 {
[%emt 0:00:00]} b5 {[%emt 0:00:00]} 7. Bb3 {[%emt 0:00:00]} d6 {[%emt 0:00:00]}
8. c3 {[%emt 0:00:00]} O-O {[%emt 0:00:00]} 9. h3 {[%emt 0:00:00]} Re8 {
[%emt 0:00:00]} 10. d4 {[%emt 0:00:00]} Bb7 {[%emt 0:00:00]} 11. Nbd2 {[%emt 0:
00:00]} Bf8 {[%emt 0:00:00]} 12. a4 {[%emt 0:00:00]} Na5 {[%emt 0:00:00]} 13.
Bc2 {[%emt 0:00:00]} exd4 {[%emt 0:00:00]} 14. cxd4 {[%emt 0:00:00]} b4 {
[%emt 0:00:00]} 15. b3 {[%emt 0:00:00]} g6 {[%emt 0:00:00]} 16. Rb1 {[%emt 0:
00:00]} Bg7 {[%emt 0:00:00]} 17. Bb2 {[%emt 0:00:00]} Rb8 {[%emt 0:00:00]} 18.
Nh2 {[%emt 0:00:00]} Nh5 {[%emt 0:22:10]} 19. Bd3 Nf4 {[%emt 0:00:00]} 20. Bc2
{[%emt 1:11:44]} d5 21. e5 Ne6 22. Ng4 h5 23. Nf6+ Bxf6 24. exf6 Qxf6 25. Nf3
Nc6 26. Qd2 Red8 27. Rbc1 a5 28. h4 Ne7 29. Ng5 Bc8 30. g3 c6 31. Re5 Bd7 32.
Bd3 Nxg5 33. hxg5 Qd6 34. Rce1 Nf5 35. Qf4 Ng7 36. Kg2 Rf8 37. Bc1 Rbd8 38. Re7
Qxf4 39. Bxf4 Ne6 40. Be5 Rfe8 41. Rxe8+ Rxe8 42. Rc1 Nxg5 43. f3 Ne6 44. Kf2
f5 45. Ba6 Kf7 46. f4 Rg8 47. Bb7 Ke7 48. Ke3 Nd8 49. Ba6 Ne6 50. Bb7 Nd8 51.
Ba6 {[%emt 0:00:00]} Ne6 {[%emt 0:00:00]} 1/2-1/2

[Event "Gibraltar Masters 18th"]
[Site "Gibraltar"]
[Date "2020.01.23"]
[Round "3.27"]
[White "Lei, Tingjie"]
[Black "Narayanan, SL."]
[Result "0-1"]
[ECO "B90"]
[WhiteElo "2493"]
[BlackElo "2637"]
[PlyCount "116"]
[EventDate "2020.01.21"]
[EventType "swiss"]
[EventRounds "10"]
[EventCountry "GGB"]
[SourceTitle "BritBase"]
[Source "John Saunders"]
[SourceDate "2021.06.05"]
[SourceVersion "1"]
[SourceVersionDate "2021.06.05"]
[SourceQuality "1"]
[TimeControl "40/100:0"]
[WhiteClock "0:45:37"]
[BlackClock "0:28:52"]

1. e4 {[%emt 0:00:00]} c5 {[%emt 0:00:00]} 2. Nf3 {[%emt 0:00:00]} d6 {[%emt 0:
00:00]} 3. d4 {[%emt 0:00:00]} cxd4 {[%emt 0:00:00]} 4. Nxd4 {[%emt 0:00:00]}
Nf6 {[%emt 0:00:00]} 5. Nc3 {[%emt 0:00:00]} a6 {[%emt 0:00:00]} 6. Be3 {
[%emt 0:00:00]} e5 {[%emt 0:00:00]} 7. Nb3 {[%emt 0:00:00]} Be6 {[%emt 0:00:00]
} 8. f3 {[%emt 0:00:00]} h5 {[%emt 0:00:00]} 9. Qd2 {[%emt 0:00:00]} Nbd7 {
[%emt 0:00:00]} 10. Nd5 {[%emt 0:00:00]} Bxd5 {[%emt 0:00:00]} 11. exd5 {
[%emt 0:00:00]} Qc7 {[%emt 0:00:00]} 12. O-O-O {[%emt 0:00:00]} Be7 {[%emt 0:
00:00]} 13. Kb1 {[%emt 0:00:00]} Nb6 {[%emt 0:00:00]} 14. Qa5 {[%emt 0:00:00]}
Rc8 {[%emt 0:00:00]} 15. c3 {[%emt 0:00:00]} Bd8 {[%emt 0:00:00]} 16. Bxb6 {
[%emt 0:00:00]} Qxb6 {[%emt 0:00:00]} 17. Qxb6 {[%emt 0:00:00]} Bxb6 {[%emt 0:
00:00]} 18. Bd3 {[%emt 0:00:00]} h4 {[%emt 0:00:00]} 19. Rhe1 {[%emt 0:00:00]}
Kf8 {[%emt 0:00:00]} 20. Bf1 {[%emt 0:00:00]} Bf2 {[%emt 0:00:00]} 21. Re2 {
[%emt 0:00:00]} Bg1 {[%emt 0:00:00]} 22. g3 {[%emt 0:00:00]} hxg3 {[%emt 0:00:
00]} 23. hxg3 {[%emt 0:00:00]} Bb6 {[%emt 0:01:06]} 24. Red2 g6 25. c4 e4 26.
fxe4 Nxe4 27. Rg2 Rh1 28. Nd2 Nf2 29. Re1 Ng4 30. Rge2 Bf2 31. Rc1 Bxg3 32. Rg2
Bf4 33. Rxg4 Bxd2 34. Rd1 Be3 35. Kc2 g5 36. Bd3 Rh2+ 37. Kb3 Bf4 38. Ka3 Re8
39. b3 Re3 40. Bb1 Ree2 41. Rf1 Be3 42. Rg3 b6 43. Kb4 Bd2+ 44. Ka3 Rhf2 45.
Rh1 Bf4 46. Rg4 Rg2 47. Rxg2 Rxg2 48. Rh8+ Kg7 49. Rb8 Bc1+ 50. Kb4 Rb2 51. Bf5
Rxa2 52. Kc3 Rf2 {[%emt 0:00:00]} 53. Bd7 {[%emt 3:09:21]} Rf3+ {[%emt 0:00:00]
} 54. Kc2 {[%emt 0:00:00]} Be3 {[%emt 0:00:00]} 55. Rb7 {[%emt 0:00:00]} a5 {
[%emt 0:00:00]} 56. Kd3 {[%emt 0:00:00]} Bc5+ {[%emt 0:00:00]} 57. Ke4 {
[%emt 0:00:00]} Rf4+ {[%emt 0:00:00]} 58. Kd3 {[%emt 0:00:00]} g4 {[%emt 0:00:
00]} 0-1

[Event "Gibraltar Masters 18th"]
[Site "Gibraltar"]
[Date "2020.01.23"]
[Round "3.28"]
[White "Pichot, Alan"]
[Black "Di Berardino, Diego Rafael"]
[Result "1-0"]
[ECO "B45"]
[WhiteElo "2606"]
[BlackElo "2478"]
[PlyCount "145"]
[EventDate "2020.01.21"]
[EventType "swiss"]
[EventRounds "10"]
[EventCountry "GGB"]
[SourceTitle "BritBase"]
[Source "John Saunders"]
[SourceDate "2021.06.05"]
[SourceVersion "1"]
[SourceVersionDate "2021.06.05"]
[SourceQuality "1"]
[TimeControl "40/100:0"]
[WhiteClock "0:22:00"]
[BlackClock "0:12:15"]

1. e4 {[%emt 0:00:00]} c5 {[%emt 0:00:00]} 2. Nf3 {[%emt 0:00:00]} e6 {[%emt 0:
00:00]} 3. d4 {[%emt 0:00:00]} cxd4 {[%emt 0:00:00]} 4. Nxd4 {[%emt 0:00:00]}
Nf6 {[%emt 0:00:00]} 5. Nc3 {[%emt 0:00:00]} Nc6 {[%emt 0:00:00]} 6. Nxc6 {
[%emt 0:00:00]} bxc6 {[%emt 0:00:00]} 7. e5 {[%emt 0:00:00]} Nd5 {[%emt 0:00:
00]} 8. Ne4 {[%emt 0:00:00]} Qc7 {[%emt 0:00:00]} 9. f4 {[%emt 0:00:00]} Qb6 {
[%emt 0:00:00]} 10. c4 {[%emt 0:00:00]} Bb4+ {[%emt 0:00:00]} 11. Ke2 {[%emt 0:
00:00]} Ba6 {[%emt 0:00:00]} 12. Kf3 {[%emt 0:00:00]} f5 {[%emt 0:00:00]} 13.
exf6 {[%emt 0:00:00]} Nxf6 {[%emt 0:00:00]} 14. c5 {[%emt 0:00:00]} Qa5 {
[%emt 0:00:00]} 15. Nxf6+ {[%emt 0:00:00]} gxf6 {[%emt 0:00:00]} 16. Bxa6 {
[%emt 0:00:00]} Qxa6 {[%emt 0:00:00]} 17. Qd4 {[%emt 0:00:00]} Qb5 {[%emt 0:00:
00]} 18. Be3 {[%emt 0:00:00]} O-O-O {[%emt 0:00:00]} 19. Rac1 {[%emt 0:00:00]}
d5 {[%emt 0:31:43]} 20. cxd6 Rxd6 21. Qc4 Kb7 22. Qxb5+ cxb5 23. Rhd1 f5 24.
Rxd6 Bxd6 25. Bd4 Rd8 26. Bf6 Rf8 27. Bg5 Rc8 28. Re1 Re8 29. h3 e5 30. fxe5
Rxe5 31. Rd1 Re6 32. Rd5 Kc6 33. Rxf5 Re1 34. Be3 a5 35. Rh5 a4 36. Rxh7 Ra1
37. Rh6 Kd5 38. Rh5+ Be5 39. g4 Ke6 40. b3 Rxa2 41. Ke4 Bc3 42. Rxb5 a3 43.
Rb6+ Kd7 44. Ra6 Bb4 45. Ra4 Be7 46. Kd5 Re2 47. Ra7+ Ke8 48. Bc5 Bxc5 49. Kxc5
a2 50. b4 Kd8 51. g5 Kc8 52. g6 Rg2 53. h4 Rxg6 54. Rxa2 Rh6 55. Rh2 Rh5+ 56.
Kd6 Kd8 57. Rh1 Rh6+ 58. Kd5 Rh5+ 59. Ke6 Ke8 60. Kf6 Kf8 61. Kg6 Rd5 62. Rf1+
Ke8 {[%emt 0:00:00]} 63. Rf4 {[%emt 0:00:00]} Rh5 {[%emt 0:00:00]} 64. Rf1 {
[%emt 0:00:00]} Rd5 {[%emt 0:00:00]} 65. Rf4 {[%emt 0:00:00]} Rd1 {[%emt 0:00:
00]} 66. h5 {[%emt 0:00:00]} Rg1+ {[%emt 0:00:00]} 67. Kh7 {[%emt 0:00:00]} Rg5
{[%emt 0:00:00]} 68. h6 {[%emt 0:00:00]} Ke7 {[%emt 0:00:00]} 69. Kh8 {[%emt 0:
00:00]} Ke6 {[%emt 0:00:00]} 70. h7 {[%emt 0:00:00]} Ke7 {[%emt 0:00:00]} 71.
b5 {[%emt 0:00:00]} Kd7 {[%emt 0:00:00]} 72. Rf8 {[%emt 0:00:00]} Ke7 {[%emt 0:
00:00]} 73. Rg8 {[%emt 0:00:00]} 1-0

[Event "Gibraltar Masters 18th"]
[Site "Gibraltar"]
[Date "2020.01.23"]
[Round "3.29"]
[White "Kryakvin, Dmitry"]
[Black "Panjwani, Raja"]
[Result "1/2-1/2"]
[ECO "A20"]
[WhiteElo "2592"]
[BlackElo "2444"]
[PlyCount "67"]
[EventDate "2020.01.21"]
[EventType "swiss"]
[EventRounds "10"]
[EventCountry "GGB"]
[SourceTitle "BritBase"]
[Source "John Saunders"]
[SourceDate "2021.06.05"]
[SourceVersion "1"]
[SourceVersionDate "2021.06.05"]
[SourceQuality "1"]
[TimeControl "40/100:0"]
[WhiteClock "0:56:13"]
[BlackClock "0:46:41"]

1. c4 {[%emt 0:00:00]} e5 {[%emt 0:00:00]} 2. g3 {[%emt 0:00:00]} Nf6 {[%emt 0:
00:00]} 3. Bg2 {[%emt 0:00:00]} h6 {[%emt 0:00:00]} 4. Nc3 {[%emt 0:00:00]} Bb4
{[%emt 0:00:00]} 5. Qb3 {[%emt 0:00:00]} Bxc3 {[%emt 0:00:00]} 6. Qxc3 {
[%emt 0:00:00]} O-O {[%emt 0:00:00]} 7. d3 {[%emt 0:00:00]} Re8 {[%emt 0:00:00]
} 8. e4 {[%emt 0:00:00]} c6 {[%emt 0:00:00]} 9. Ne2 {[%emt 0:00:00]} d5 {
[%emt 0:00:00]} 10. O-O {[%emt 0:00:00]} a5 {[%emt 0:00:00]} 11. b3 {[%emt 0:
00:00]} Na6 {[%emt 0:00:00]} 12. exd5 {[%emt 0:00:00]} cxd5 {[%emt 0:00:00]}
13. Ba3 {[%emt 0:00:00]} d4 {[%emt 0:00:00]} 14. Qd2 {[%emt 0:00:00]} Qb6 {
[%emt 0:00:00]} 15. Bb2 {[%emt 0:00:00]} Qb4 {[%emt 0:00:00]} 16. Rfd1 {
[%emt 0:00:00]} a4 {[%emt 0:00:00]} 17. bxa4 {[%emt 0:04:50]} Bg4 18. Rab1 Qxa4
19. f3 Bh5 20. Re1 Nc5 21. f4 Qxa2 22. fxe5 Nb3 23. Qc2 Rxe5 24. Nf4 Rae8 25.
Rxe5 Rxe5 26. Nxh5 Nxh5 27. Bxb7 Nf6 28. Rf1 Re3 29. Bd5 h5 30. Qf2 Qa7 31. Qf5
Re2 32. Qc8+ Kh7 33. Qf5+ Kg8 34. Qc8+ {[%emt 0:00:00]} 1/2-1/2

[Event "Gibraltar Masters 18th"]
[Site "Gibraltar"]
[Date "2020.01.23"]
[Round "3.30"]
[White "Song, Raymond"]
[Black "Santos Latasa, Jaime"]
[Result "0-1"]
[ECO "E04"]
[WhiteElo "2478"]
[BlackElo "2586"]
[PlyCount "40"]
[EventDate "2020.01.21"]
[EventType "swiss"]
[EventRounds "10"]
[EventCountry "GGB"]
[SourceTitle "BritBase"]
[Source "John Saunders"]
[SourceDate "2021.06.05"]
[SourceVersion "1"]
[SourceVersionDate "2021.06.05"]
[SourceQuality "1"]
[TimeControl "40/100:0"]
[WhiteClock "0:28:58"]
[BlackClock "1:24:14"]

1. d4 {[%emt 0:00:00]} d5 {[%emt 0:00:00]} 2. c4 {[%emt 0:00:00]} e6 {[%emt 0:
00:00]} 3. Nf3 {[%emt 0:00:00]} Nf6 {[%emt 0:00:00]} 4. g3 {[%emt 0:00:00]}
dxc4 {[%emt 0:00:00]} 5. Bg2 {[%emt 0:00:00]} a6 {[%emt 0:00:00]} 6. O-O {
[%emt 0:00:00]} Nc6 {[%emt 0:00:00]} 7. e3 {[%emt 0:00:00]} Rb8 {[%emt 0:00:00]
} 8. Nfd2 {[%emt 0:00:00]} e5 {[%emt 0:00:00]} 9. Bxc6+ {[%emt 0:00:00]} bxc6 {
[%emt 0:00:00]} 10. dxe5 {[%emt 0:00:00]} Ng4 {[%emt 0:00:00]} 11. Nxc4 {
[%emt 0:00:00]} Be6 {[%emt 0:00:00]} 12. Nbd2 {[%emt 0:00:00]} Bb4 {[%emt 0:00:
00]} 13. Qe2 {[%emt 0:00:00]} Bxd2 {[%emt 0:00:00]} 14. Bxd2 {[%emt 0:00:00]}
h5 {[%emt 0:00:00]} 15. Rad1 {[%emt 0:00:00]} h4 {[%emt 0:00:00]} 16. Be1 {
[%emt 0:00:00]} Qe7 {[%emt 0:00:00]} 17. Rd4 {[%emt 0:00:00]} Nxh2 {[%emt 0:00:
00]} 18. Kxh2 {[%emt 0:00:00]} hxg3+ {[%emt 0:00:00]} 19. Kg2 {[%emt 0:00:00]}
Rh2+ {[%emt 0:00:00]} 20. Kf3 {[%emt 0:00:00]} Qg5 {[%emt 0:00:00]} 0-1

[Event "Gibraltar Masters 18th"]
[Site "Gibraltar"]
[Date "2020.01.23"]
[Round "3.31"]
[White "Sardana, Rishi"]
[Black "Xu, Xiangyu"]
[Result "1-0"]
[ECO "B30"]
[WhiteElo "2437"]
[BlackElo "2580"]
[PlyCount "63"]
[EventDate "2020.01.21"]
[EventType "swiss"]
[EventRounds "10"]
[EventCountry "GGB"]
[SourceTitle "BritBase"]
[Source "John Saunders"]
[SourceDate "2021.06.05"]
[SourceVersion "1"]
[SourceVersionDate "2021.06.05"]
[SourceQuality "1"]
[TimeControl "40/100:0"]
[WhiteClock "0:36:52"]
[BlackClock "0:48:33"]

1. e4 {[%emt 0:00:00]} c5 {[%emt 0:00:00]} 2. Nf3 {[%emt 0:00:00]} Nc6 {
[%emt 0:00:00]} 3. Bb5 {[%emt 0:00:00]} e6 {[%emt 0:00:00]} 4. O-O {[%emt 0:00:
00]} Nge7 {[%emt 0:00:00]} 5. Re1 {[%emt 0:00:00]} a6 {[%emt 0:00:00]} 6. Bf1 {
[%emt 0:00:00]} d5 {[%emt 0:00:00]} 7. d3 {[%emt 0:00:00]} d4 {[%emt 0:00:00]}
8. a4 {[%emt 0:00:00]} e5 {[%emt 0:00:00]} 9. Na3 {[%emt 0:00:00]} f6 {[%emt 0:
00:00]} 10. Nc4 {[%emt 0:00:00]} Be6 {[%emt 0:00:00]} 11. Nfd2 {[%emt 0:00:00]}
b6 {[%emt 0:00:00]} 12. f4 {[%emt 0:00:00]} exf4 {[%emt 0:00:00]} 13. e5 {
[%emt 0:00:00]} f5 {[%emt 0:00:00]} 14. Nd6+ {[%emt 0:00:00]} Kd7 {[%emt 0:00:
00]} 15. N2c4 {[%emt 0:00:00]} Nd5 {[%emt 0:00:00]} 16. Qf3 {[%emt 0:00:00]}
Bxd6 {[%emt 0:05:02]} 17. exd6 Ne3 18. Qxf4 g5 19. Ne5+ Nxe5 20. Qxe5 f4 21. b4
Rc8 22. bxc5 bxc5 23. Rb1 Re8 24. Bxe3 dxe3 25. Be2 Rb8 26. Qxc5 Qc8 27. Qxg5
Qc3 28. Qxf4 Qd2 29. Rbd1 Qb4 30. Qxe3 Bd5 31. Qh3+ Kxd6 {[%emt 0:00:00]} 32.
Qg3+ {[%emt 0:00:00]} 1-0

[Event "Gibraltar Masters 18th"]
[Site "Gibraltar"]
[Date "2020.01.23"]
[Round "3.32"]
[White "Ramirez, Alejandro"]
[Black "Atalik, Ekaterina"]
[Result "1/2-1/2"]
[ECO "E68"]
[WhiteElo "2574"]
[BlackElo "2450"]
[PlyCount "120"]
[EventDate "2020.01.21"]
[EventType "swiss"]
[EventRounds "10"]
[EventCountry "GGB"]
[SourceTitle "BritBase"]
[Source "John Saunders"]
[SourceDate "2021.06.05"]
[SourceVersion "1"]
[SourceVersionDate "2021.06.05"]
[SourceQuality "1"]
[TimeControl "40/100:0"]
[WhiteClock "0:22:52"]
[BlackClock "0:32:30"]

1. d4 {[%emt 0:00:00]} Nf6 {[%emt 0:00:00]} 2. c4 {[%emt 0:00:00]} g6 {[%emt 0:
00:00]} 3. g3 {[%emt 0:00:00]} Bg7 {[%emt 0:00:00]} 4. Bg2 {[%emt 0:00:00]} O-O
{[%emt 0:00:00]} 5. Nc3 {[%emt 0:00:00]} d6 {[%emt 0:00:00]} 6. Nf3 {[%emt 0:
00:00]} Nbd7 {[%emt 0:00:00]} 7. O-O {[%emt 0:00:00]} e5 {[%emt 0:00:00]} 8. e4
{[%emt 0:00:00]} exd4 {[%emt 0:00:00]} 9. Nxd4 {[%emt 0:00:00]} a6 {[%emt 0:00:
00]} 10. b3 {[%emt 0:00:00]} Re8 {[%emt 0:00:00]} 11. Re1 {[%emt 0:00:00]} Rb8
{[%emt 0:00:00]} 12. a4 {[%emt 0:00:00]} a5 {[%emt 0:00:00]} 13. Ndb5 {[%emt 0:
00:00]} Nc5 {[%emt 0:00:00]} 14. Ba3 {[%emt 0:00:00]} Ng4 {[%emt 0:00:00]} 15.
Qc2 {[%emt 0:00:00]} Bd7 {[%emt 0:12:24]} 16. Rad1 Ne5 17. f4 Nc6 18. Nd5 Na6
19. c5 Ncb4 20. Bxb4 axb4 21. cxd6 c6 22. Nbc7 cxd5 23. Nxe8 Bc3 24. Nc7 Nxc7
25. dxc7 Qxc7 26. Re2 Bg4 27. exd5 Bxe2 28. Qxe2 Qd6 29. a5 Kf8 30. Qb5 Re8 31.
Qxb7 Qc5+ 32. Kh1 Qf2 33. Qb6 Qc2 34. Qg1 Qxb3 35. a6 Qa4 36. Qf1 b3 37. d6 b2
38. Qd3 Qxd1+ 39. Qxd1 Re1+ 40. Qxe1 Bxe1 41. a7 b1=Q 42. a8=Q+ Kg7 43. Qe4
Qxe4 44. Bxe4 Kf8 45. Kg2 Bb4 46. d7 Ke7 47. Bc6 Bc5 48. Ba4 Bb6 49. Kf3 h5 50.
Ke4 Bg1 51. h3 Bf2 52. Kf3 Be1 53. Bb5 Ba5 54. g4 hxg4+ 55. Kxg4 Kf6 56. Kf3
Ke7 57. Ke4 Bc7 58. f5 g5 59. Kf3 f6 {[%emt 0:00:00]} 60. Kg4 {[%emt 0:00:00]}
Be5 {[%emt 0:00:00]} 1/2-1/2

[Event "Gibraltar Masters 18th"]
[Site "Gibraltar"]
[Date "2020.01.23"]
[Round "3.33"]
[White "Ladron De Guevara Pinto, Paolo"]
[Black "Sanal, Vahap"]
[Result "1/2-1/2"]
[ECO "B56"]
[WhiteElo "2445"]
[BlackElo "2569"]
[PlyCount "79"]
[EventDate "2020.01.21"]
[EventType "swiss"]
[EventRounds "10"]
[EventCountry "GGB"]
[SourceTitle "BritBase"]
[Source "John Saunders"]
[SourceDate "2021.06.05"]
[SourceVersion "1"]
[SourceVersionDate "2021.06.05"]
[SourceQuality "1"]
[TimeControl "40/100:0"]

1. e4 {[%emt 0:43:15]} c5 {[%emt 0:01:15]} 2. Nf3 {[%emt 0:00:24]} Nc6 {
[%emt 0:00:24]} 3. d4 {[%emt 0:01:17]} cxd4 {[%emt 0:00:08]} 4. Nxd4 {[%emt 0:
00:05]} Nf6 {[%emt 0:00:27]} 5. Nc3 {[%emt 0:00:08]} d6 {[%emt 0:00:12]} 6. g3
{[%emt 0:04:04]} e5 {[%emt 0:00:10]} 7. Nde2 {[%emt 0:01:52]} Be7 {[%emt 0:01:
07]} 8. Bg2 {[%emt 0:00:07]} O-O {[%emt 0:02:23]} 9. O-O {[%emt 0:00:10]} a5 {
[%emt 0:03:50]} 10. h3 {[%emt 0:01:32]} h5 {[%emt 0:03:17]} 11. f4 {[%emt 0:17:
17]} Qb6+ {[%emt 0:25:17]} 12. Kh1 {[%emt 0:02:14]} Re8 {[%emt 0:06:43]} 13. f5
{[%emt 0:14:39]} Bd7 {[%emt 0:14:19]} 14. Nd5 {[%emt 0:06:48]} Nxd5 15. exd5
Nd4 16. Nxd4 Qxd4 17. Qe2 e4 18. Qxe4 Qxe4 19. Bxe4 Bh4 20. Bf3 Bxg3 21. Bxh5
Bb5 22. Rg1 Bf2 23. Rd1 Rac8 24. c3 Be2 25. Bxe2 {[%emt 2:03:28]} Rxe2 26. Bf4
{[%emt 0:00:17]} Bc5 27. Rd2 {[%emt 0:05:08]} Rce8 28. Rad1 {[%emt 0:00:21]}
R2e4 29. Bg3 {[%emt 0:02:12]} Re2 30. Bf4 {[%emt 0:01:15]} R2e4 31. Bg3 {
[%emt 0:00:40]} f6 32. Kg2 {[%emt 0:04:05]} Kf7 33. Bf2 {[%emt 0:04:04]} Bxf2
34. Rxf2 {[%emt 0:00:13]} Rf8 35. Rd3 {[%emt 0:02:09]} b5 36. b3 {[%emt 0:01:
18]} Rc8 37. Kf1 {[%emt 0:01:00]} Re5 38. Rf4 {[%emt 0:00:48]} Rce8 39. c4 {
[%emt 0:00:40]} Re1+ 40. Kg2 {[%emt 0:01:26]} 1/2-1/2

[Event "Gibraltar Masters 18th"]
[Site "Gibraltar"]
[Date "2020.01.23"]
[Round "3.34"]
[White "Aryan, Chopra"]
[Black "Astaneh Lopez, Alex"]
[Result "1-0"]
[ECO "C65"]
[WhiteElo "2562"]
[BlackElo "2432"]
[PlyCount "121"]
[EventDate "2020.01.21"]
[EventType "swiss"]
[EventRounds "10"]
[EventCountry "GGB"]
[SourceTitle "BritBase"]
[Source "John Saunders"]
[SourceDate "2021.06.05"]
[SourceVersion "1"]
[SourceVersionDate "2021.06.05"]
[SourceQuality "1"]
[TimeControl "40/100:0"]
[WhiteClock "1:21:30"]
[BlackClock "0:30:25"]

1. e4 {[%emt 0:09:57]} e5 {[%emt 0:00:00]} 2. Nf3 {[%emt 0:00:00]} Nc6 {
[%emt 0:00:00]} 3. Bb5 {[%emt 0:00:00]} Nf6 {[%emt 0:00:00]} 4. d3 {[%emt 0:00:
00]} Bc5 {[%emt 0:00:00]} 5. Bxc6 {[%emt 0:00:00]} dxc6 {[%emt 0:00:00]} 6. O-O
{[%emt 0:00:00]} Nd7 {[%emt 0:00:00]} 7. c3 {[%emt 0:00:00]} O-O {[%emt 0:00:
00]} 8. d4 {[%emt 0:00:00]} Bd6 {[%emt 0:00:00]} 9. Bg5 {[%emt 0:00:00]} f6 {
[%emt 0:00:00]} 10. Bh4 {[%emt 0:00:00]} Qe8 {[%emt 0:00:00]} 11. Re1 {[%emt 0:
00:00]} Nb6 {[%emt 0:00:00]} 12. Bg3 {[%emt 0:00:00]} Bg4 {[%emt 0:00:00]} 13.
Nbd2 {[%emt 0:00:00]} Kh8 {[%emt 0:00:00]} 14. h3 {[%emt 0:00:00]} Bh5 {
[%emt 0:00:00]} 15. Qc2 {[%emt 0:00:00]} Rd8 {[%emt 0:00:00]} 16. Nh4 {[%emt 0:
00:00]} exd4 {[%emt 0:00:00]} 17. Bxd6 {[%emt 0:00:00]} Rxd6 {[%emt 0:00:00]}
18. Nf5 {[%emt 0:00:00]} Rd8 {[%emt 0:00:00]} 19. cxd4 {[%emt 0:00:00]} Bg6 {
[%emt 0:00:00]} 20. Nb3 {[%emt 0:00:00]} Qf7 {[%emt 0:00:00]} 21. Nc5 {[%emt 0:
00:00]} Rb8 {[%emt 0:00:00]} 22. Qb3 {[%emt 0:02:27]} Qxb3 23. axb3 a6 24. g4
Bf7 25. e5 fxe5 26. dxe5 g6 27. Ng3 Bd5 28. Nge4 Rf3 29. Ng5 Rf4 30. Nce6 Bxe6
31. Nxe6 Rf7 32. Nc5 Nd5 33. Ra4 g5 34. h4 h6 35. hxg5 hxg5 36. e6 Re7 37. Re5
Nf4 38. Rd4 Rbe8 39. Rd7 b6 40. Ne4 Ng6 41. Rxg5 Rxe6 42. f3 Ne5 43. Rh5+ Kg8
44. Rxe5 Rxe5 45. Nf6+ Kf8 46. Nxe8 Kxe8 47. Rxc7 Rb5 48. Kf2 Rxb3 49. g5 a5
50. g6 Kf8 51. f4 a4 52. f5 Rxb2+ 53. Kg3 Rb1 54. Kg4 Rg1+ 55. Kh5 Rf1 56. Kg5
a3 57. f6 Rg1+ 58. Kf5 Rf1+ 59. Ke5 Re1+ 60. Kd4 a2 61. g7+ {[%emt 0:00:00]}
1-0

[Event "Gibraltar Masters 18th"]
[Site "Gibraltar"]
[Date "2020.01.23"]
[Round "3.35"]
[White "Chen, Qi B"]
[Black "Li, Di"]
[Result "1/2-1/2"]
[ECO "C54"]
[WhiteElo "2432"]
[BlackElo "2562"]
[PlyCount "29"]
[EventDate "2020.01.21"]
[EventType "swiss"]
[EventRounds "10"]
[EventCountry "GGB"]
[SourceTitle "BritBase"]
[Source "John Saunders"]
[SourceDate "2021.06.05"]
[SourceVersion "1"]
[SourceVersionDate "2021.06.05"]
[SourceQuality "1"]
[TimeControl "40/100:0"]
[WhiteClock "1:44:14"]
[BlackClock "1:38:29"]

1. e4 {[%emt 0:00:00]} e5 {[%emt 0:00:00]} 2. Nf3 {[%emt 0:00:00]} Nc6 {
[%emt 0:00:00]} 3. Bc4 {[%emt 0:00:00]} Bc5 {[%emt 0:00:00]} 4. c3 {[%emt 0:00:
00]} Nf6 {[%emt 0:00:00]} 5. d4 {[%emt 0:00:00]} exd4 {[%emt 0:00:00]} 6. cxd4
{[%emt 0:00:00]} Bb4+ {[%emt 0:00:00]} 7. Bd2 {[%emt 0:00:00]} Bxd2+ {[%emt 0:
00:00]} 8. Nbxd2 {[%emt 0:00:00]} d5 {[%emt 0:00:00]} 9. exd5 {[%emt 0:00:00]}
Nxd5 {[%emt 0:00:00]} 10. Qb3 {[%emt 0:00:00]} Na5 {[%emt 0:00:00]} 11. Qa4+ {
[%emt 0:00:00]} Nc6 {[%emt 0:00:00]} 12. Qb3 {[%emt 0:00:00]} Na5 {[%emt 0:00:
00]} 13. Qa4+ {[%emt 0:00:00]} Nc6 {[%emt 0:00:00]} 14. Qb3 {[%emt 0:00:00]}
Na5 {[%emt 0:00:00]} 15. Qa4+ 1/2-1/2